Cogmind - Beta 15 @@@ ROGUE MODE // 2025.06.18 @ 23:08:03 Player: 7604 Result: Destroyed by as-48832 with Assembled Rifle Performance ------------- Evolutions (0) 0 Regions Visited (2) 400 Robots Destroyed (21) 105 Value Destroyed (397) 397 Prototype IDs (2) 40 Alien Tech Used (0) 0 Bonus (0) 0 TOTAL SCORE: 942 Bonus ------- None Cogmind --------- Core Integrity 0/250 Matter 195/300 Energy 79/125 System Corruption 3% Temperature Cool (9) Movement Treading (160) Location -10/Mines Parts ------- > --- POWER (1) -------- Light Ion Engine > --- PROPULSION (2) --- Light Treads Light Treads > --- UTILITY (2) ------ Improved Heat Sink Large Storage Unit > --- WEAPON (2) ------- Beam Rifle Beam Rifle > --- INVENTORY (15) --- Light Ion Engine Light Treads Light Treads Light Treads Light Treads Medium Armor Plating Medium Armor Plating Medium Armor Plating Medium Armor Plating Hacking Suite Beam Rifle Beam Rifle Datajack Peak State ------------ > --- POWER ------------ Light Ion Engine > --- PROPULSION ------- Light Treads Light Treads > --- UTILITY ---------- Improved Heat Sink Large Storage Unit > --- WEAPON ----------- Beam Rifle Beam Rifle > --- INVENTORY -------- Light Ion Engine Light Treads Light Treads Light Treads Light Treads Medium Armor Plating Medium Armor Plating Medium Armor Plating Medium Armor Plating Hacking Suite Beam Rifle Beam Rifle Datajack [Rating: 13] Favorites ----------- Power Ion Engine Engine Ion Engine Propulsion Aluminum Leg Treads Light Treads Leg Aluminum Leg Utility Seismic Detector Device Seismic Detector Storage Medium Storage Unit Weapon Assault Rifle Energy Gun Small Laser Ballistic Gun Assault Rifle Launcher Grenade Launcher Build | -11 -10 -10 ------- Run | Yrd Mat Min Slots Evolved . | . . . Power . | . . . Propulsion . | . . . Utility . | . . . Weapon . | . . . Parts Attached 15 | 1 12 2 Power 1 | . 1 . Engine 1 | . 1 . Core . | . . . Reactor . | . . . Propulsion 4 | . 4 . Treads 4 | . 4 . Leg . | . . . Wheel . | . . . Hover . | . . . Flight . | . . . Utility 4 | 1 2 1 Device 2 | 1 . 1 Storage 2 | . 2 . Processor . | . . . Hackware . | . . . Protection . | . . . Artifact . | . . . Weapon 6 | . 5 1 Energy Gun 4 | . 3 1 Energy Cannon . | . . . Ballistic Gun 1 | . 1 . Ballistic Cannon . | . . . Launcher 1 | . 1 . Special Weapon . | . . . Impact Weapon . | . . . Slashing Weapon . | . . . Piercing Weapon . | . . . Special Melee Weapon . | . . . Unidentified Prototypes . | . . . Parts Lost 3 | . 1 2 Power 1 | . 1 . Propulsion . | . . . Utility 1 | . . 1 Weapon 1 | . . 1 Highest Loss Streak 2 | . 1 2 To Critical Strikes . | . . . Average Backups 9 | 6 9 15 Power . | 1 . 1 Propulsion 4 | 4 4 4 Utility 1 | . 1 6 Weapon 2 | 1 2 3 Tool/Special . | . . . Unused Backups 22 | 6 6 10 Power 3 | 1 1 1 Propulsion 10 | 2 4 4 Utility 6 | 1 1 4 Weapon 3 | 2 . 1 Tool/Special . | . . . Average Slot Usage (%) 99 | . 99 95 Engine 13 | . 13 14 Treads 13 | . 12 28 Leg 14 | . 15 . Device 13 | . 14 9 Storage 14 | . 14 14 Energy Gun 7 | . 7 18 Ballistic Gun 19 | . 20 . Peak Build Rating 13 | 7 11 13 Average Rating 7 | 6 7 10 On Entrance 8 | 6 7 11 Naked Turns . | . . . Heaviest Build 30 | 13 30 30 Greatest Support 40 | 20 40 40 Greatest Overweight (x) . | . . . Average Overweight (x) . | . . . Largest Inventory Capacity 15 | 8 15 15 Average Capacity 11 | 8 11 15 Most Carried 15 | 6 15 15 Average Carried 9 | 6 9 14 Final Capacity 15 | 8 15 15 Final Carried 15 | 6 15 13 Class Distribution -------------------- 100% | Mutant Dominant Class ---------------- Mutant | -10/Materials Mutant | -10/Mines Resources | -11 -10 -10 ----------- Run | Yrd Mat Min Matter Collected 558 | 218 340 . Remotely . | . . . Salvage Created 627 | 20 535 72 Parts 42 | 3 39 . Haulers Intercepted 2 | . 2 . Recyclers Shooed 1 | 1 . . Parts Field Recycled . | . . . Retrieved Matter . | . . . Parts Self-Destructed . | . . . Prevented . | . . . Kills | -11 -10 -10 ------- Run | Yrd Mat Min Combat Hostiles Destroyed 26 | . 13 13 Guns 11 | . 10 1 AOE 15 | . 3 12 Classes Destroyed 8 | 1 6 1 Worker 1 | . 1 . Tunneler 1 | 1 . . Hauler 2 | . 2 . Operator 1 | . 1 . Watcher 3 | . 3 . Swarmer 6 | . 6 . Grunt 7 | . 7 . Assembled 13 | . . 13 Best Kill Streak 13 | 1 4 13 Combat Bots Only 13 | . 3 13 Max Kills in Single Turn 5 | 1 3 5 Gunslinging . | . . . Exploded 5 | . 2 5 Melee . | . . . Uniques/NPCs Destroyed . | . . . Combat | -11 -10 -10 -------- Run | Yrd Mat Min Hostile Shots Fired 105 | . 63 42 Missed 28 | . 18 10 Hits 77 | . 45 32 Melee 7 | . . 7 Projectile 70 | . 45 25 Damage Taken 959 | . 424 535 Core 254 | . 130 124 Absorbed by Shields . | . . . Core Remaining (%) 100 | 100 . . Volleys Fired 72 | 4 60 8 Largest 2 | 2 2 2 Hottest 112 | 40 112 112 Shots Fired 136 | 8 118 10 Gun 128 | 8 116 4 Cannon . | . . . Launcher 8 | . 2 6 Special . | . . . Kinetic 106 | 8 98 . Thermal 22 | . 18 4 Explosive 8 | . 2 6 Electromagnetic . | . . . Robot Hit Streak 14 | 4 14 1 Robot Miss Streak 4 | 2 4 2 Penetration Max . | . . . Secondary Targets 2 | . 1 1 Max Gunslinging Chain 1 | . 1 1 Shots Hit Robots 80 | 4 74 2 Core Hits 66 | 2 35 29 Critical Kills 1 | . 1 . Critical Parts Destroyed . | . . . Critical Strikes 1 | . 1 . Destroy 1 | . 1 . Melee Attacks . | . . . Impact . | . . . Slashing . | . . . Piercing . | . . . Sneak Attacks . | . . . Combat Hostiles . | . . . Follow-up Attacks . | . . . Damage Inflicted 1791 | 31 1060 700 Guns 848 | 31 803 14 Cannons . | . . . Explosions 943 | . 257 686 Melee . | . . . Ramming . | . . . Kinetic 688 | 31 657 . Thermal 160 | . 146 14 Explosive 943 | . 257 686 Electromagnetic . | . . . Impact . | . . . Slashing . | . . . Piercing . | . . . Highest Corruption 3 | . . 3 Average Corruption 3 | . . 3 Corruption Purged . | . . . Corruption Blocked . | . . . Overload Shots . | . . . Overflow Damage 12 | . 12 . Projectiles . | . . . Explosions 12 | . 12 . Melee . | . . . Knockbacks . | . . . Impact . | . . . Kinetic . | . . . Secondary . | . . . Self-Inflicted Damage . | . . . Shots . | . . . Rammed . | . . . Targets Rammed . | . . . Kicked . | . . . Crushed . | . . . Highest Temperature 102 | . 102 9 Average Temperature 18 | . 19 6 Received Heat Transfer 120 | . 120 . Siege Activations . | . . . Martial Activations . | . . . Shielding Activations . | . . . Robots Disrupted . | . . . Combat Hostiles . | . . . Robots Corrupted . | . . . Combat Hostiles . | . . . Parts Fried . | . . . Impact Corruptions . | . . . Robots Melted . | . . . Combat Hostiles . | . . . Parts Melted . | . . . Heat Transferred 386 | . 349 37 Parts Sabotaged . | . . . Parts Stolen . | . . . Parts Stripped . | . . . Power Chain Reactions . | . . . Alert | -11 -10 -10 ------- Run | Yrd Mat Min Maximum Alert Level 1 | . 1 . Low Security (%) 92 | 100 92 100 Level 1 7 | . 7 . Level 2 . | . . . Level 3 . | . . . Level 4 . | . . . Level 5 . | . . . High Security . | . . . Max Security . | . . . Peak Influence 229 | 5 229 62 Initial 49 | . . 49 Average 88 | 1 92 52 Influence Increases 551 | 5 524 22 Destroy 0b10 Robot/C 260 | . 260 . Destroy 0b10 Robot/NC 40 | 5 35 . Destroy Leader 90 | . 90 . Successful Hack 21 | . 21 . Select Force Hacks 60 | . 60 . Disable Machine 15 | . 15 . Destroy Structure 35 | . 13 22 Lose Combat Pursuer 30 | . 30 . Influence Decreases 510 | 5 396 109 Entered New Map 79 | . . 79 Time Decay 401 | 5 386 10 Lost Part 30 | . 10 20 Squads Dispatched 5 | . 5 . Investigation 2 | . 2 . Extermination . | . . . Reinforcement 3 | . 3 . Assault . | . . . Garrison . | . . . Intercept . | . . . Searches Triggered . | . . . Construction Impeded . | . . . Haulers Reinforced . | . . . Active Scanning Responses . | . . . Cargo Convoy Interrupts . | . . . Stealth | -11 -10 -10 --------- Run | Yrd Mat Min Distress Signals 2 | . 2 . Communications Jammed . | . . . Distress Signals . | . . . Times Spotted 44 | . 24 20 Peak Tracking Total 20 | . 5 20 Tactical Retreats 3 | . 2 1 Traps | -11 -10 -10 ------- Run | Yrd Mat Min Traps Triggered 1 | . 1 . Indirectly . | . . . Trap Hack Attempts . | . . . Triggered . | . . . Disarmed . | . . . Reprogrammed . | . . . Reused . | . . . Traps Extracted . | . . . Installed . | . . . Triggered . | . . . Machines | -11 -10 -10 ---------- Run | Yrd Mat Min Machines Disabled 1 | . 1 . Max in Single Turn 1 | . 1 . Machines Repaired . | . . . Machines Dismantled . | . . . Machines Sabotaged . | . . . Overloaded Fab Kills . | . . . Hacking | -11 -10 -10 --------- Run | Yrd Mat Min Machines Accessed 7 | . 7 . Terminals 5 | . 5 . Fabricators . | . . . Repair Stations . | . . . Recycling Units 2 | . 2 . Scanalyzers . | . . . Garrison Access . | . . . Total Hacks 20 | . 20 . Successful 11 | . 11 . Failed 9 | . 9 . Catastrophic 1 | . 1 . Database Lockouts . | . . . Manual 14 | . 14 . Terminals 14 | . 14 . Fabricators . | . . . Repair Stations . | . . . Recycling Units 6 | . 6 . Scanalyzers . | . . . Garrison Access . | . . . Terminal Hacks 1 | . 1 . Prototype ID Bank 1 | . 1 . Fabricator Hacks . | . . . Repair Station Hacks . | . . . Recycling Unit Hacks 2 | . 2 . Retrieve Components 2 | . 2 . Scanalyzer . | . . . Garrison Access Hacks . | . . . Unauthorized Hacks 8 | . 8 . Terminals 6 | . 6 . Botnet 1 | . 1 . Skim 5 | . 5 . Fabricators . | . . . Repair Stations . | . . . Recycling Units 2 | . 2 . Tunnel 2 | . 2 . Scanalyzers . | . . . Garrison Access . | . . . Data Cores Recovered . | . . . Used . | . . . Hacking Detections 7 | . 7 . Full Trace Events . | . . . Feedback Events . | . . . Feedback Blocked . | . . . Robot Schematics Acquired . | . . . Robots Built . | . . . Authchips . | . . . Time . | . . . Total Robot Build Rating . | . . . Part Schematics Acquired . | . . . Parts Built . | . . . Authchips . | . . . Time . | . . . Total Part Build Rating . | . . . Parts Repaired . | . . . Time . | . . . Parts Recycled . | . . . Recycled Matter . | . . . Retrieved Matter . | . . . Retrieved Components 19 | . 19 . Parts Scanalyzed . | . . . Part Schematics Acquired . | . . . Parts Damaged . | . . . Bothacking | -11 -10 -10 ------------ Run | Yrd Mat Min Used RIF Installer . | . . . Robots Hacked . | . . . Non-combat . | . . . Combat . | . . . Robot Hacks Applied . | . . . Relay Couplers Released . | . . . Fabnet Peak Effective % . | . . . Robots Rewired . | . . . Allies Hacked . | . . . Hacks Repelled . | . . . Allies | -11 -10 -10 -------- Run | Yrd Mat Min Total Allies . | . . . Largest Group . | . . . Highest-Rated Group . | . . . Highest-Rated Ally . | . . . Total Orders . | . . . Ally Attacks . | . . . Total Damage . | . . . Kills . | . . . Allies Corrupted . | . . . Allies Melted . | . . . Intel | -11 -10 -10 ------- Run | Yrd Mat Min Active Infowar (turns) 1731 | 35 1686 10 Seismic 1731 | 35 1686 10 Robot Analysis Total . | . . . Derelict Logs Recovered . | . . . Drone Launches . | . . . Drone Recoveries . | . . . Exploration | -11 -10 -10 ------------- Run | Yrd Mat Min Turns Passed 1766 | 59 1686 21 Spaces Moved 830 | 24 805 1 Core . | . . . Treads 425 | . 424 1 Legs 405 | 24 381 . Wheels . | . . . Hover . | . . . Flight . | . . . Fastest Speed 120 | 120 120 160 Average Speed 140 | 120 141 160 Slowest Speed 160 | 120 160 160 Overloaded Moves . | . . . Propulsion Burnouts . | . . . Robots Hopped . | . . . Potential Cave-ins . | . . . Cave-ins Triggered . | . . . Exploration Rate (%) 35 | 3 97 5 Regions Visited 2 Branch Regions 1 Pre-discovered Areas 3 | . 3 . Known Exits Taken . | . . . Unknown Exits Taken 2 | 1 1 . Scrap Searched . | . . . Spaces Dug 8 | . 8 . Terrain Destroyed 36 | . 11 25 Melee . | . . . Projectile . | . . . AOE 36 | . 11 25 Terrain Rammed . | . . . Walls Destroyed . | . . . Machines Disabled . | . . . Actions | -11 -10 -10 --------- Run | Yrd Mat Min Total 1309 | 47 1250 12 Wait 355 | 19 336 . Move 828 | 23 804 1 Hop . | . . . Pick Up 20 | . 20 . Fast Attach 4 | 1 3 . Attach 5 | . 3 2 Detach 1 | . 1 . Swap 9 | . 8 1 Drop 15 | . 15 . Fire 72 | 4 60 8 Melee . | . . . Ram . | . . . Kick . | . . . Crush . | . . . Escape Stasis . | . . . Rewire . | . . . Trap . | . . . Miscellaneous . | . . . Route ------- -11/Scrapyard -10/Materials (discovered 6 exits: *Mat x3 / [*Min x2] / Sub) -10/Mines History --------- Turn | Location | Event 12 | -11/Scrapyard | Discovered new exit (range 3) 60 | -11/Scrapyard | Entered Materials 309 | -10/Materials | Build established: Mutant 366 | -10/Materials | Discovered new exit (range 6) 550 | -10/Materials | Discovered new exit (range 8) 828 | -10/Materials | Discovered new exit (range 14) 926 | -10/Materials | Discovered new exit (range 10) 1145 | -10/Materials | Core integrity fell below 50% 1404 | -10/Materials | Identified exit to Materials 1404 | -10/Materials | Identified exit to Subcaves 1523 | -10/Materials | Learned Storage emergency access door positions 1624 | -10/Materials | Learned 2 Mines zone layouts 1658 | -10/Materials | Learned Storage emergency access door positions 1704 | -10/Materials | Learned location of Mines (-9) 1746 | -10/Materials | Entered Mines 1747 | -10/Mines | Assembled infested the area 1764 | -10/Mines | Core integrity fell below 20% 1767 | -10/Mines | Destroyed by as-48832 with Assembled Rifle Last Messages --------------- 01750_ as-03550 destroyed. 01750_ as-40281 destroyed. 01752_ as-94000 destroyed. 01752_ as-31065 destroyed. 01752_ Destroyed Asb. F-torch. 01752_ as-33894 destroyed. 01754_ as-72165 destroyed. 01754_ as-88243 destroyed. 01756_ as-09662 destroyed. 01756_ Seismic Detector destroyed. 01756_ System corrupted by crushing effect (+3). 01760_ as-55694 destroyed. 01760_ as-26607 destroyed. 01760_ as-27104 destroyed. 01760_ as-96436 destroyed. 01760_ as-35026 destroyed. 01760_ Grenade Launcher destroyed. 01766_ The unstable cave ceiling collapses. 01767_ as-45292 destroyed. 01767_ Switching to secondary target: as-28946. Map ----- +----------------------------------------------------+ | | | | | | | | | | | | | | | | | | | | | | | | | | | | | | | | | ??????????????????????????????????????????? | | ??????????????????????????????????????????? | | ??????????????????????????????????????????? | | ?????????????????????####?????????????????? | | ?????????????????????? ?????????????????? | | ??????????????????????# ?????????????????? | | ??????????????????????# ##???????????????? | | ??????????????????????# ###?????????????? | | ??????????????????????# ##????????????? | | ??????????????????????#* @ #????????????? | | ??????????????????????#%=%a #????????????? | | ??????????????????????#! ##????????????? | | ??????????????????????# #?????????????? | | ????????????????????? #?????????????? | | ??????????????????? % #?????????????? | | ?????????????????? % #?????????????? | | ???????????????? a ?????????????? | | ???????????????### % ?????????????? | | ?????????????????# % ##????????????? | | ?????????????????# # % #?????????????? | | ?????????????????### #?????????????? | | ??????????????????? a a#?????????????? | | ??????????????????? ?????????????? | | ????????????????????? < ?????????????? | | ???????????????????????# ??????????????? | | """ ######??????#?????????????????? | | """ ### ######????????????????????????? | | """ ## ????????????????????????? | | ########????????????????????????? | | ##??##????????????????????????? | | ## #?## ????????????????????????? | | ?## ###### ????????????????????????? | | ?## ##???# ????????????????????????? | | ## ####### ????????????????????????? | +----------------------------------------------------+ Best States ------------- Heat Dissipation 25 Energy Generation 10 Energy Capacity 250 Matter Stores 300 Matter Capacity 300 Sight Range 16 Terrain Scan Density 10 Evasion (%) 55 Recoil Reduction 2 Item Schematics ----------------- None Robot Schematics ------------------ None Fabricated ------------ Nothing Repaired ---------- Nothing Alien Tech Used ----------------- None Achievements -------------- None Challenges ------------ None Game ------ Seed EnhancedExpertMagmablaster Manual? 0 Play Time 00:09:39 Cumulative 458.1 hours Start 2025.06.18 @ 22:58:17 End 2025.06.18 @ 23:08:03 Sessions 1 Manual Loads 0 Difficulty Rogue Special Mode None Game No. 240 Rogue 177 Adventurer 63 Explorer 0 Win Type - Total 9 Types 8/0/0/1/0/0/0/0/0/0 Lore% 89 Gallery% 80 Achievement% 66 Wizard Run 0 Options --------- Layout 1 ASCII 0 Keyboard 1 Movement Numpad Keybinds 0 Fullscreen 1 Font 24/Terminus Map View 50x35 Zoom Use 0% Tactical HUD 1 Map Filters NONE Filters NONE Steam 1 RUN: 21fef69b-55c2-498f-900a-071678daad7c